Cogmind - Beta 14 @@@ ROGUE MODE // 2025.04.28 @ 21:13:17 Player: DuckBoy Result: Destroyed by Y-45 Defender with Heavy Assault Rifle Performance ------------- Evolutions (0) 0 Regions Visited (3) 600 Robots Destroyed (42) 210 Value Destroyed (1120) 1120 Prototype IDs (13) 260 Alien Tech Used (0) 0 Bonus (-95) -95 TOTAL SCORE: 2095 Bonus ------- Friendly Fire -95 Cogmind --------- Core Integrity 0/250 Matter 300/300 Energy 169/265 System Corruption 0% Temperature Cool (36) Movement Treading (320) Ox2 Location -9/Recycling Parts ------- > --- POWER (1) -------- Reinforced Ion Engine > --- PROPULSION (2) --- Light Treads > --- UTILITY (2) ------ Improved Heat Sink Large Storage Unit > --- WEAPON (2) ------- Subdweller Beam Cannon Assault Rifle > --- INVENTORY (15) --- Reinforced Ion Engine Arachnoskeleton Structural Scanner Scrap Shield Scrap Shield Rocket Launcher Multitool Scrap Shield Fragment (46) Scrap Shield Fragment (45) Peak State ------------ > --- POWER ------------ Reinforced Ion Engine > --- PROPULSION ------- Light Treads Light Treads > --- UTILITY ---------- Large Storage Unit Subdweller Optics > --- WEAPON ----------- Beamcaster Rocket Launcher > --- INVENTORY -------- Reinforced Ion Engine Reinforced Ion Engine Light Treads Light Treads Arachnoskeleton Structural Scanner Scrap Shield Spread Laser Subdweller Beam Cannon Rocket Launcher Rocket Launcher Multitool [Rating: 18] Favorites ----------- Power Reinforced Ion Engine Engine Reinforced Ion Engine Propulsion Light Treads Treads Light Treads Wheel Compact Wheel Utility Large Storage Unit Device Structural Scanner Storage Large Storage Unit Protection Scrap Shield Weapon Rocket Launcher Energy Gun Spread Laser Energy Cannon Subdweller Beam Cannon Ballistic Gun Light Assault Rifle Launcher Rocket Launcher Build | -11 -10 -10 -9 ------- Run | Yrd Mat Sub Rec Slots Evolved . | . . . . Power . | . . . . Propulsion . | . . . . Utility . | . . . . Weapon . | . . . . Parts Attached 54 | 7 19 24 4 Power 4 | 2 1 . 1 Engine 4 | 2 1 . 1 Core . | . . . . Reactor . | . . . . Propulsion 10 | 2 4 4 . Treads 8 | . 4 4 . Leg . | . . . . Wheel 2 | 2 . . . Hover . | . . . . Flight . | . . . . Utility 10 | 1 4 4 1 Device 4 | . 1 2 1 Storage 5 | 1 3 1 . Processor . | . . . . Hackware . | . . . . Protection 1 | . . 1 . Artifact . | . . . . Weapon 30 | 2 10 16 2 Energy Gun 13 | 1 5 6 1 Energy Cannon 2 | . . 2 . Ballistic Gun 4 | 1 2 . 1 Ballistic Cannon . | . . . . Launcher 11 | . 3 8 . Special Weapon . | . . . . Impact Weapon . | . . . . Slashing Weapon . | . . . . Piercing Weapon . | . . . . Special Melee Weapon . | . . . . Unidentified Prototypes . | . . . . Parts Lost 8 | . . 5 3 Power 1 | . . . 1 Propulsion 3 | . . 2 1 Utility . | . . . . Weapon 4 | . . 3 1 Highest Loss Streak 5 | . . 5 3 To Critical Strikes . | . . . . Average Slot Usage (%) 91 | . 99 89 83 Engine 14 | . 14 14 14 Treads 27 | . 26 27 24 Device 6 | . 13 3 3 Storage 8 | . 14 5 14 Protection 5 | . . 8 . Energy Gun 8 | . 16 6 5 Energy Cannon 4 | . . 5 14 Ballistic Gun 1 | . 7 . 1 Launcher 12 | . 3 15 5 Peak Build Rating 18 | 6 12 18 14 Average Rating 12 | 4 10 13 12 On Entrance 7 | . 6 12 13 Naked Turns . | . . . . Heaviest Build 44 | 13 38 44 42 Greatest Support 40 | 26 40 40 40 Greatest Overweight (x) 1 | . . 1 1 Average Overweight (x) . | . . . 1 Largest Inventory Capacity 15 | 8 15 15 15 Average Capacity 10 | 6 13 9 15 Most Carried 15 | 6 15 15 15 Average Carried 9 | 3 13 8 14 Final Capacity 15 | 8 15 15 15 Final Carried 15 | 6 14 15 13 Class Distribution -------------------- 100% | Mutant Dominant Class ---------------- Mutant | -10/Materials Mutant | -10/Subcaves Mutant | -9/Recycling Resources | -11 -10 -10 -9 ----------- Run | Yrd Mat Sub Rec Matter Collected 1578 | 264 301 949 64 Remotely . | . . . . Salvage Created 796 | . 358 394 44 Parts 66 | . 37 25 4 Haulers Intercepted 2 | . 2 . . Recyclers Shooed . | . . . . Parts Field Recycled . | . . . . Retrieved Matter . | . . . . Parts Self-Destructed 11 | . . 11 . Prevented . | . . . . Kills | -11 -10 -10 -9 ------- Run | Yrd Mat Sub Rec Combat Hostiles Destroyed 34 | . 15 18 1 Guns 12 | . 10 2 . Cannons 2 | . . 1 1 AOE 20 | . 5 15 . Classes Destroyed 9 | . 5 4 . Worker 1 | . 1 . . Hauler 2 | . 2 . . Turret 2 | . . 2 . Watcher 3 | . 3 . . Swarmer 12 | . 9 3 . Grunt 6 | . 6 . . Sentry 2 | . . 1 1 Cobbler 1 | . . 1 . Subdweller 14 | . . 14 . Best Kill Streak 6 | . 6 4 1 Combat Bots Only 5 | . 5 4 1 Max Kills in Single Turn 4 | . 2 4 1 Gunslinging . | . . . . Exploded 4 | . 2 4 . Melee . | . . . . Uniques/NPCs Destroyed . | . . . . Combat | -11 -10 -10 -9 -------- Run | Yrd Mat Sub Rec Hostile Shots Fired 175 | . 55 96 24 Missed 61 | . 23 35 3 Damage Taken 2041 | . 313 1415 313 Core 254 | . 37 132 85 Absorbed by Shields . | . . . . Regen/Repaired (Parts) 77 | . 77 . . Core Remaining (%) 100 | 100 . . . Volleys Fired 126 | . 41 80 5 Largest 2 | . 2 2 2 Hottest 145 | . 130 145 145 Shots Fired 182 | . 74 98 10 Gun 88 | . 66 17 5 Cannon 19 | . . 14 5 Launcher 75 | . 8 67 . Special . | . . . . Kinetic 28 | . 26 . 2 Thermal 79 | . 40 31 8 Explosive 75 | . 8 67 . Electromagnetic . | . . . . Robot Hit Streak 14 | . 14 13 7 Robot Miss Streak 6 | . 6 4 3 Penetration Max . | . . . . Secondary Targets 1 | . 1 . . Max Gunslinging Chain 1 | . 1 . . Shots Hit Robots 101 | . 57 35 9 Core Hits 101 | . 50 46 5 Critical Kills . | . . . . Critical Parts Destroyed . | . . . . Critical Strikes . | . . . . Melee Attacks . | . . . . Impact . | . . . . Slashing . | . . . . Piercing . | . . . . Sneak Attacks . | . . . . Combat Hostiles . | . . . . Follow-up Attacks . | . . . . Damage Inflicted 4199 | . 1266 2738 195 Guns 831 | . 570 203 58 Cannons 383 | . . 246 137 Explosions 2985 | . 696 2289 . Melee . | . . . . Ramming . | . . . . Kinetic 232 | . 221 . 11 Thermal 982 | . 349 449 184 Explosive 2985 | . 696 2289 . Electromagnetic . | . . . . Impact . | . . . . Slashing . | . . . . Piercing . | . . . . Highest Corruption . | . . . . Average Corruption . | . . . . Corruption Purged . | . . . . Corruption Blocked . | . . . . Overload Shots . | . . . . Overflow Damage 49 | . 40 9 . Projectiles . | . . . . Explosions 49 | . 40 9 . Melee . | . . . . Knockbacks . | . . . . Impact . | . . . . Kinetic . | . . . . Secondary . | . . . . Self-Inflicted Damage 250 | . . 250 . Shots 8 | . . 8 . Rammed . | . . . . Targets Rammed . | . . . . Kicked . | . . . . Crushed . | . . . . Highest Temperature 405 | . 405 148 351 Average Temperature 89 | . 95 32 164 Received Heat Transfer 495 | . 102 276 117 Siege Activations . | . . . . Robots Corrupted . | . . . . Combat Hostiles . | . . . . Parts Fried . | . . . . Impact Corruptions . | . . . . Robots Melted . | . . . . Combat Hostiles . | . . . . Parts Melted . | . . . . Heat Transferred 1388 | . 500 643 245 Parts Sabotaged . | . . . . Parts Stolen . | . . . . Parts Stripped . | . . . . Power Chain Reactions 1 | . 1 . . Alert | -11 -10 -10 -9 ------- Run | Yrd Mat Sub Rec Peak Influence 284 | . 284 . 139 Initial 139 | . . . 139 Average 138 | . 143 . 132 Maximum Alert Level 1 | . 1 . . Low Security (%) 78 | 100 77 . 100 Level 1 21 | . 22 . . Level 2 . | . . . . Level 3 . | . . . . Level 4 . | . . . . Level 5 . | . . . . High Security . | . . . . Max Security . | . . . . Squads Dispatched 1 | . 1 . . Investigation 1 | . 1 . . Extermination . | . . . . Reinforcement . | . . . . Assault . | . . . . Garrison . | . . . . Intercept . | . . . . Searches Triggered . | . . . . Construction Impeded . | . . . . Haulers Reinforced . | . . . . Active Scanning Responses . | . . . . Cargo Convoy Interrupts . | . . . . Stealth | -11 -10 -10 -9 --------- Run | Yrd Mat Sub Rec Distress Signals . | . . . . Communications Jammed . | . . . . Distress Signals . | . . . . Times Spotted 61 | . 24 35 2 Peak Tracking Total 7 | . 5 7 2 Tactical Retreats 7 | . 1 6 . Traps | -11 -10 -10 -9 ------- Run | Yrd Mat Sub Rec Traps Triggered . | . . . . Indirectly . | . . . . Trap Hack Attempts . | . . . . Triggered . | . . . . Disarmed . | . . . . Reprogrammed . | . . . . Reused . | . . . . Traps Extracted . | . . . . Installed . | . . . . Triggered . | . . . . Machines | -11 -10 -10 -9 ---------- Run | Yrd Mat Sub Rec Machines Disabled 9 | . 2 7 . Max in Single Turn 4 | . 2 4 . Machines Repaired . | . . . . Machines Dismantled . | . . . . Machines Sabotaged . | . . . . Overloaded Fab Kills . | . . . . Hacking | -11 -10 -10 -9 --------- Run | Yrd Mat Sub Rec Machines Accessed 15 | . 11 4 . Terminals 8 | . 8 . . Fabricators . | . . . . Repair Stations 1 | . 1 . . Recycling Units 2 | . 2 . . Scanalyzers . | . . . . Garrison Access . | . . . . Total Hacks 46 | . 31 15 . Successful 32 | . 17 15 . Failed 14 | . 14 . . Catastrophic 2 | . 2 . . Database Lockouts . | . . . . Manual 17 | . 17 . . Terminals 26 | . 26 . . Fabricators . | . . . . Repair Stations 2 | . 2 . . Recycling Units 3 | . 3 . . Scanalyzers . | . . . . Garrison Access . | . . . . Terminal Hacks 22 | . 7 15 . Record 12 | . . 12 . Prototype ID Bank 1 | . 1 . . Open Door 1 | . . 1 . Branch Access Points 1 | . 1 . . Terminal Index 1 | . 1 . . Locate Traps 2 | . 2 . . Registered Components 1 | . 1 . . Zone Layout 1 | . 1 . . Derelict Proto ID Bank 1 | . . 1 . Release Object 1 | . . 1 . Fabricator Hacks . | . . . . Repair Station Hacks 2 | . 2 . . Scan Component 1 | . 1 . . Repair 1 | . 1 . . Recycling Unit Hacks 2 | . 2 . . Process 1 | . 1 . . Retrieve Matter 1 | . 1 . . Scanalyzer . | . . . . Garrison Access Hacks . | . . . . Unauthorized Hacks 6 | . 6 . . Terminals 5 | . 5 . . Track 1 | . 1 . . Botnet 2 | . 2 . . Operators 2 | . 2 . . Fabricators . | . . . . Repair Stations . | . . . . Recycling Units 1 | . 1 . . Tunnel 1 | . 1 . . Scanalyzers . | . . . . Garrison Access . | . . . . Data Cores Recovered . | . . . . Used . | . . . . Hacking Detections 9 | . 9 . . Full Trace Events . | . . . . Feedback Events . | . . . . Feedback Blocked . | . . . . Robot Schematics Acquired . | . . . . Robots Built . | . . . . Authchips . | . . . . Time . | . . . . Total Robot Build Rating . | . . . . Part Schematics Acquired . | . . . . Parts Built . | . . . . Authchips . | . . . . Time . | . . . . Total Part Build Rating . | . . . . Parts Repaired 1 | . 1 . . Time 26 | . 26 . . Parts Recycled . | . . . . Recycled Matter 68 | . 68 . . Retrieved Matter . | . . . . Retrieved Components . | . . . . Parts Scanalyzed . | . . . . Part Schematics Acquired . | . . . . Parts Damaged . | . . . . Bothacking | -11 -10 -10 -9 ------------ Run | Yrd Mat Sub Rec Used RIF Installer . | . . . . Robots Hacked . | . . . . Non-combat . | . . . . Combat . | . . . . Robot Hacks Applied . | . . . . Relay Couplers Released . | . . . . Fabnet Peak Effective % . | . . . . Robots Rewired . | . . . . Allies Hacked . | . . . . Hacks Repelled . | . . . . Allies | -11 -10 -10 -9 -------- Run | Yrd Mat Sub Rec Total Allies . | . . . . Largest Group . | . . . . Highest-Rated Group . | . . . . Highest-Rated Ally . | . . . . Total Orders . | . . . . Ally Attacks . | . . . . Total Damage . | . . . . Kills . | . . . . Allies Corrupted . | . . . . Allies Melted . | . . . . Intel | -11 -10 -10 -9 ------- Run | Yrd Mat Sub Rec Robot Analysis Total . | . . . . Derelict Logs Recovered 3 | . . 3 . Drone Launches . | . . . . Drone Recoveries . | . . . . Exploration | -11 -10 -10 -9 ------------- Run | Yrd Mat Sub Rec Turns Passed 6279 | 54 1650 4502 73 Spaces Moved 3311 | 43 899 2347 22 Core 1 | 1 . . . Treads 3208 | . 839 2347 22 Legs . | . . . . Wheels 102 | 42 60 . . Hover . | . . . . Flight . | . . . . Fastest Speed 50 | 50 90 160 240 Average Speed 172 | 89 155 179 240 Slowest Speed 240 | 100 160 240 240 Overloaded Moves . | . . . . Propulsion Burnouts . | . . . . Robots Hopped . | . . . . Cave-ins Triggered . | . . . . Exploration Rate (%) 48 | 3 95 89 5 Regions Visited 3 Branch Regions 2 Pre-discovered Areas 1 | . 1 . . Known Exits Taken . | . . . . Unknown Exits Taken 3 | 1 1 1 . Scrap Searched 6 | . . 6 . Spaces Dug 102 | . 22 80 . Terrain Destroyed 389 | . 48 341 . Melee . | . . . . Projectile 1 | . . 1 . AOE 388 | . 48 340 . Terrain Rammed . | . . . . Walls Destroyed . | . . . . Machines Disabled . | . . . . Actions | -11 -10 -10 -9 --------- Run | Yrd Mat Sub Rec Total 3695 | 54 1081 2529 31 Wait 141 | . 100 41 . Move 3308 | 42 898 2346 22 Hop . | . . . . Pick Up 36 | 5 13 18 . Fast Attach 13 | 6 2 4 1 Attach 9 | . 1 6 2 Detach . | . . . . Swap 32 | 1 16 14 1 Drop 21 | . 10 11 . Fire 126 | . 41 80 5 Melee . | . . . . Ram . | . . . . Kick . | . . . . Crush . | . . . . Escape Stasis . | . . . . Rewire . | . . . . Trap . | . . . . Miscellaneous 9 | . . 9 . Route ------- -11/Scrapyard -10/Materials (discovered 6 exits: [*Mat x3] / *Min x2 / *Sub) -10/Subcaves (discovered 3 exits: [*Mat x2] / [*Rec]) -9/Recycling History --------- Turn | Location | Event 14 | -11/Scrapyard | Discovered new exit (range 14) 55 | -11/Scrapyard | Entered Materials 220 | -10/Materials | Discovered new exit (range 7) 312 | -10/Materials | Build established: Mutant 602 | -10/Materials | Discovered new exit (range 16) 806 | -10/Materials | Repaired Lgt. Treads 811 | -10/Materials | Discovered new exit (range 7) 1102 | -10/Materials | Discovered new exit (range 9) 1183 | -10/Materials | Discovered new exit (range 16) 1205 | -10/Materials | Identified exit to Mines 1689 | -10/Materials | Discovered new exit (range 10) 1705 | -10/Materials | Entered Subcaves 1705 | -10/Subcaves | Learned Materials garrison access intel 1810 | -10/Subcaves | Ambushed by swarm of Subdwellers 1811 | -10/Subcaves | Ambushed by Subdwellers from Twisted Machinery 1957 | -10/Subcaves | Discovered new exit (range 8) 2001 | -10/Subcaves | Shifting Twisted Machinery released Flamer 2011 | -10/Subcaves | Discovered new exit (range 7) 2071 | -10/Subcaves | Learned 4 Materials zone layouts 2114 | -10/Subcaves | Shifting Twisted Machinery released Scrap Shield 2237 | -10/Subcaves | Ambushed by Subdwellers from Twisted Machinery 3398 | -10/Subcaves | Released subatomizers from SUBCON Basin 3574 | -10/Subcaves | Visited 4L-MR0's lab 3650 | -10/Subcaves | Found Arachnoskeleton 4192 | -10/Subcaves | Visited Clippyterm 4196 | -10/Subcaves | Learned Factory trap positions 4822 | -10/Subcaves | Discovered new exit (range 21) 5132 | -10/Subcaves | Ambushed by Subdweller buried in earth 5195 | -10/Subcaves | Learned Materials terminal intel 5307 | -10/Subcaves | Disturbed a concealed Subdweller 5391 | -10/Subcaves | Core integrity fell below 50% 5440 | -10/Subcaves | Lost 5 parts (2n3w) 6207 | -10/Subcaves | Entered Recycling 6256 | -9/Recycling | Core integrity fell below 20% 6280 | -9/Recycling | Destroyed by Y-45 Defender with Heavy Assault Rifle Last Messages --------------- 06002_ Acquired 19 matter. 06026_ Acquired 68 matter. 06029_ Acquired 46 matter. 06033_ Acquired Imp. Heat Sink. 06042_ Acquired 10 matter. 06061_ Dropped Scrap Shield Fragment. 06061_ Acquired Scrap Shield. 06062_ Dropped Broken Sub. Optics. LOCATION=UNKNOWN GOAL=ESCAPE 06227_ Acquired 28 matter. 06247_ Y-45 Defender springs to life. 06253_ Critical hit (Burn: +37). 06261_ Lgt. Treads destroyed. 06261_ Spread Laser destroyed. 06261_ Rnf. Ion Engine destroyed. 06273_ Acquired Assault Rifle. 06274_ Y-45 Defender destroyed. 06275_ Acquired 33 matter. 06278_ Acquired 3 matter. Map ----- +----------------------------------------------------+ | ?????????????????????????????????????????????????? | | ?????????????????????????????????????????????????? | | ?????????????????????????????????????????????????? | | ?????????????????????????????????????????????????? | | ?????????????????????????????????????????????????? | | ?????????????????????????????????????????????????? | | ?????????????????????????????????????????????????? | | ?????????????????????????????????????????????????? | | ?????????????????????????????????????????????????? | | ?????????????????????????????????????????????????? | | ?????????????????????????????????????????????????? | | ?????????????????????????????????????????????????? | | ?????????????????????????????????????????????????? | | ?????????????????????????????????????????????????? | | ?????????????????????????????????????????????????? | | ?????????????????????????????????????????????????? | | ?????????????????????????????????????????????????? | | ?????????????????????????????????????????????????? | | ?????????????????????????????????????????????????? | | ??????? ????????#????????????????????????????????? | | ??????? ### # ############???????????????????? | | ????????# #???????????????????? | | ????????# #???????????????????? | | ????????# #???????????????????? | | ?????????????##########+######???????????????????? | | ??????????????????# [Y@! #????????????????????? | | ??????????????????#= []= #????????????????????? | | ??????????????????# #????????????????????? | | ??????????????????# % [ #????????????????????? | | ??????????????????# ! #????????????????????? | | ??????????????????# ! #????????????????????? | | ??????????????????# = #????????????????????? | | ??????????????????# #????????????????????? | | ??????????????????###########????????????????????? | | ?????????????????????????????????????????????????? | | ?????????????????????????????????????????????????? | | | | | | | | | | | | | | | | | | | | | | | | | | | | | +----------------------------------------------------+ Best States ------------- Heat Dissipation 39 Energy Generation 12 Energy Capacity 265 Matter Stores 300 Matter Capacity 300 Sight Range 21 Terrain Scan Density 10 Armor Coverage 800 Evasion (%) 42 Recoil Reduction 2 Item Schematics ----------------- None Robot Schematics ------------------ None Fabricated ------------ Nothing Alien Tech Used ----------------- None Achievements -------------- None Challenges ------------ None Game ------ Seed MakeshiftTripodMatrix Manual? 0 Play Time 00:52:41 Cumulative 455.9 hours Start 2025.04.28 @ 18:52:36 End 2025.04.28 @ 21:13:17 Sessions 1 Manual Loads 0 Difficulty Rogue Special Mode None Game No. 292 Rogue 289 Adventurer 3 Explorer 0 Win Type - Total 8 Types 7/0/1/0/0/0/0/0/0 Lore% 60 Gallery% 74 Achievement% 67 Wizard Run 0 Options --------- Layout 0 ASCII 0 Keyboard 0 Movement Numpad Keybinds 0 Fullscreen 1 Font 18/SmallcapsGlow Map View 76x50 Zoom Use 0% Tactical HUD 1 Map Filters NONE Filters NONE Steam 1 RUN: 7b05d73a-03cc-460e-bd3a-018437b6c73a